Cogmind - Beta 11 X8 @@@ ROGUE MODE // 2021.11.10 @ 16:24:07 Player: Runia Result: Destroyed by 8R-AWN with 8R-AWN's Boregun Performance ------------- Evolutions (0) 0 Regions Visited (3) 600 Robots Destroyed (32) 160 Value Destroyed (620) 620 Prototype IDs (3) 60 Alien Tech Used (0) 0 Bonus (-908) -908 TOTAL SCORE: 532 Bonus ------- Friendly Fire -908 Cogmind --------- Core Integrity 0/250 Matter 182/300 Energy 249/250 System Corruption 9% Temperature Cool (0) Movement Core (200) Ox3 Location -10/Exiles Parts ------- > --- POWER (1) -------- Ion Engine > --- PROPULSION (2) --- (None) > --- UTILITY (2) ------ Improved Weapon Shielding > --- WEAPON (2) ------- Electrolaser > --- INVENTORY (5) ---- Reinforced Fission Core Medium Laser Grenade Launcher Grenade Launcher Peak State ------------ > --- POWER ------------ Ion Engine > --- PROPULSION ------- Aluminum Leg Wheel > --- UTILITY ---------- Heavy Armor Plating > --- WEAPON ----------- Electrolaser 8R-AWN's Boregun > --- INVENTORY -------- Improved Weapon Shielding Medium Laser Grenade Launcher Grenade Launcher [Rating: 22] Favorites ----------- Power Ion Engine Engine Ion Engine Propulsion Light Treads Treads Light Treads Leg Aluminum Leg Wheel Wheel Hover Unit Combat Airjet Utility Large Storage Unit Storage Large Storage Unit Protection Core Shielding Weapon Light Assault Rifle Energy Gun Medium Laser Ballistic Gun Light Assault Rifle Launcher Grenade Launcher Build | -11 -10 -10 -10 ------- Run | Scr Mat Min Exi Slots Evolved . | . . . . Power . | . . . . Propulsion . | . . . . Utility . | . . . . Weapon . | . . . . Parts Attached 39 | 2 16 16 5 Power 3 | . . 2 1 Engine 3 | . . 2 1 Core . | . . . . Reactor . | . . . . Propulsion 7 | 2 . 5 . Treads 2 | 2 . . . Leg 2 | . . 2 . Wheel 2 | . . 2 . Hover 1 | . . 1 . Flight . | . . . . Utility 7 | . 3 2 2 Device . | . . . . Storage 2 | . 2 . . Processor . | . . . . Hackware . | . . . . Protection 5 | . 1 2 2 Artifact . | . . . . Weapon 22 | . 13 7 2 Energy Gun 4 | . . 3 1 Energy Cannon . | . . . . Ballistic Gun 9 | . 6 2 1 Ballistic Cannon . | . . . . Launcher 9 | . 7 2 . Special Weapon . | . . . . Impact Weapon . | . . . . Slashing Weapon . | . . . . Piercing Weapon . | . . . . Special Melee Weapon . | . . . . Unidentified Prototypes 1 | . . . 1 Parts Lost 11 | . . 7 4 Power 1 | . . 1 . Propulsion 6 | . . 4 2 Utility 1 | . . . 1 Weapon 3 | . . 2 1 Highest Loss Streak 4 | . . 4 4 Average Slot Usage (%) 94 | . 94 95 93 Engine 13 | . 14 13 14 Treads 14 | . 28 3 . Leg 5 | . . 8 13 Wheel 6 | . . 11 12 Storage 17 | . 22 14 10 Protection 7 | . . 14 14 Energy Gun 6 | . . 12 14 Ballistic Gun 16 | . 24 11 1 Launcher 4 | . 3 3 11 Naked Turns . | . . . . Heaviest Build 34 | 12 34 30 30 Greatest Support 40 | 40 40 40 10 Greatest Overweight (x) 3 | . . 2 3 Average Overweight (x) 1 | . . 1 2 Largest Inventory Capacity 15 | 8 15 15 15 Average Capacity 14 | 8 14 15 12 Most Carried 15 | 5 8 15 15 Average Carried 7 | 3 4 10 11 Final Capacity 15 | 8 15 15 5 Final Carried 15 | 2 8 15 4 Class Distribution -------------------- 100% | Mutant Dominant Class ---------------- Mutant | -10/Materials Mutant | -10/Mines Mutant | -10/Exiles Resources | -11 -10 -10 -10 ----------- Run | Scr Mat Min Exi Matter Collected 1143 | 200 362 481 100 Remotely . | . . . . Salvage Created 936 | . 499 416 21 Parts 49 | . 39 10 . Haulers Intercepted 2 | . 2 . . Recyclers Shooed 1 | . . 1 . Parts Field Recycled . | . . . . Retrieved Matter . | . . . . Parts Self-Destructed . | . . . . Prevented . | . . . . Kills | -11 -10 -10 -10 ------- Run | Scr Mat Min Exi Combat Hostiles Destroyed 39 | . 17 20 2 Guns 15 | . 7 8 . AOE 24 | . 10 12 2 Classes Destroyed 10 | . 5 4 1 Worker 1 | . . 1 . Builder 3 | . 2 1 . Tunneler 1 | . . 1 . Hauler 2 | . 2 . . Recycler 1 | . . 1 . Watcher 2 | . 2 . . Swarmer 7 | . 5 2 . Grunt 13 | . 12 1 . Zionite 1 | . . . 1 Assembled 19 | . . 17 2 Best Kill Streak 12 | . 7 12 3 Combat Bots Only 10 | . 5 10 2 Max Kills in Single Turn 4 | . 3 4 2 Gunslinging . | . . . . Exploded 3 | . 2 3 1 Melee . | . . . . Uniques/NPCs Destroyed 1 | . . 1 . YI-UF0 (-10/Mines) Combat | -11 -10 -10 -10 -------- Run | Scr Mat Min Exi Damage Taken 1844 | . 363 825 656 Core 254 | . 57 150 47 Absorbed by Shields . | . . . . Core Remaining (%) 100 | 100 . . . Volleys Fired 144 | . 61 57 26 Largest 2 | . 2 2 1 Hottest 83 | . 40 83 63 Shots Fired 228 | . 109 94 25 Gun 197 | . 96 79 22 Cannon . | . . . . Launcher 31 | . 13 15 3 Special . | . . . . Kinetic 157 | . 96 42 19 Thermal 40 | . . 37 3 Explosive 31 | . 13 15 3 Electromagnetic . | . . . . Robot Hit Streak 9 | . 7 9 5 Robot Miss Streak 4 | . 4 3 2 Penetration Max . | . . . . Secondary Targets 1 | . 1 . . Max Gunslinging Chain 1 | . 1 . . Shots Hit Robots 129 | . 65 51 13 Core Hits 107 | . 47 51 9 Critical Kills 2 | . 1 1 . Critical Parts Destroyed . | . . . . Critical Strikes 5 | . 1 1 3 Destroy 5 | . 1 1 3 Melee Attacks . | . . . . Impact . | . . . . Slashing . | . . . . Piercing . | . . . . Sneak Attacks . | . . . . Combat Hostiles . | . . . . Follow-up Attacks . | . . . . Damage Inflicted 2992 | . 1511 1188 293 Guns 1218 | . 506 509 203 Cannons . | . . . . Explosions 1774 | . 1005 679 90 Melee . | . . . . Ramming . | . . . . Kinetic 903 | . 506 196 201 Thermal 315 | . . 313 2 Explosive 1774 | . 1005 679 90 Electromagnetic . | . . . . Impact . | . . . . Slashing . | . . . . Piercing . | . . . . Highest Corruption 9 | . . 9 9 Average Corruption 8 | . . 8 9 Corruption Purged . | . . . . Effects 27 | . . 11 16 Message Errors 8 | . . 2 6 Matter Fused 8 | . . 4 4 Heat Flow Errors 3 | . . . 3 Energy Discharges 2 | . . 2 . Parts Rejected 1 | . . 1 . Data Loss (minor) 2 | . . . 2 Data Loss (major) 1 | . . 1 . Misfires 1 | . . 1 . Weapon Failures 1 | . . . 1 Overload Shots . | . . . . Overflow Damage 6 | . . 6 . Projectiles . | . . . . Explosions 6 | . . 6 . Melee . | . . . . Knockbacks . | . . . . Impact . | . . . . Kinetic . | . . . . Secondary . | . . . . Self-Inflicted Damage 72 | . 25 47 . Shots 3 | . 1 2 . Rammed . | . . . . Targets Rammed . | . . . . Kicked . | . . . . Crushed . | . . . . Highest Temperature 216 | . 12 150 216 Average Temperature 60 | . 6 48 103 Received Heat Transfer 182 | . 162 20 . Siege Activations . | . . . . Robots Corrupted . | . . . . Combat Hostiles . | . . . . Parts Fried . | . . . . Impact Corruptions . | . . . . Robots Melted . | . . . . Combat Hostiles . | . . . . Parts Melted . | . . . . Heat Transferred 906 | . . 888 18 Parts Sabotaged . | . . . . Parts Stolen . | . . . . Parts Stripped . | . . . . Power Chain Reactions . | . . . . Missiles Intercepted . | . . . . Alert | -11 -10 -10 -10 ------- Run | Scr Mat Min Exi Peak Influence 331 | . 331 89 . Initial 64 | . . 64 . Average 131 | . 209 37 . Maximum Alert Level 1 | . 1 . . Low Security (%) 71 | 100 46 100 . Level 1 28 | . 53 . . Level 2 . | . . . . Level 3 . | . . . . Level 4 . | . . . . Level 5 . | . . . . High Security . | . . . . Max Security . | . . . . Squads Dispatched 7 | . 6 1 . Investigation 4 | . 3 1 . Extermination . | . . . . Reinforcement 3 | . 3 . . Assault . | . . . . Garrison . | . . . . Intercept . | . . . . Construction Impeded . | . . . . Haulers Reinforced . | . . . . Active Scanning Responses . | . . . . Cargo Convoy Interrupts . | . . . . Stealth | -11 -10 -10 -10 --------- Run | Scr Mat Min Exi Distress Signals 2 | . 2 . . Communications Jammed . | . . . . Distress Signals . | . . . . Times Spotted 59 | . 28 24 7 Peak Tracking Total 10 | . 5 7 10 Tactical Retreats 3 | . 1 1 1 Traps | -11 -10 -10 -10 ------- Run | Scr Mat Min Exi Traps Triggered 1 | . 1 . . Indirectly . | . . . . Trap Hack Attempts . | . . . . Triggered . | . . . . Disarmed . | . . . . Reprogrammed . | . . . . Reused 5 | . . . 5 Traps Extracted . | . . . . Installed 5 | . . . 5 Triggered . | . . . . Exploded 3 | . . . 3 Machines | -11 -10 -10 -10 ---------- Run | Scr Mat Min Exi Machines Disabled 6 | . 2 . 4 Max in Single Turn 2 | . 2 . 1 Machines Sabotaged . | . . . . Garrisons Compromised . | . . . . Overloaded Fab Kills . | . . . . Hacking | -11 -10 -10 -10 --------- Run | Scr Mat Min Exi Machines Accessed 10 | . 8 1 1 Terminals 5 | . 5 . . Fabricators . | . . . . Repair Stations 1 | . 1 . . Recycling Units 2 | . 2 . . Scanalyzers . | . . . . Garrison Access . | . . . . Total Hacks 23 | . 21 1 1 Successful 15 | . 13 1 1 Failed 8 | . 8 . . Catastrophic 1 | . 1 . . Database Lockouts . | . . . . Manual 3 | . 3 . . Terminals 16 | . 16 . . Fabricators . | . . . . Repair Stations 2 | . 2 . . Recycling Units 3 | . 3 . . Scanalyzers . | . . . . Garrison Access . | . . . . Terminal Hacks 10 | . 8 1 1 Record 1 | . . . 1 Robot Analysis 2 | . 2 . . Prototype ID Bank 1 | . 1 . . Open Door 1 | . . 1 . Branch Access Points 1 | . 1 . . Unreport Threat 1 | . 1 . . Locate Traps 2 | . 2 . . Recall Reinforcements 1 | . 1 . . Fabricator Hacks . | . . . . Repair Station Hacks 2 | . 2 . . Scan Component 1 | . 1 . . Repair 1 | . 1 . . Recycling Unit Hacks 2 | . 2 . . Report Inventory 2 | . 2 . . Scanalyzer . | . . . . Garrison Access Hacks . | . . . . Unauthorized Hacks 1 | . 1 . . Terminals . | . . . . Fabricators . | . . . . Repair Stations . | . . . . Recycling Units 1 | . 1 . . Tunnel 1 | . 1 . . Scanalyzers . | . . . . Garrison Access . | . . . . Data Cores Recovered . | . . . . Used . | . . . . Hacking Detections 7 | . 7 . . Full Trace Events 1 | . 1 . . Feedback Events . | . . . . Feedback Blocked . | . . . . Robot Schematics Acquired . | . . . . Robots Built . | . . . . Authchips . | . . . . Time . | . . . . Total Robot Build Rating . | . . . . Part Schematics Acquired . | . . . . Parts Built . | . . . . Authchips . | . . . . Time . | . . . . Total Part Build Rating . | . . . . Parts Repaired 1 | . 1 . . Time 26 | . 26 . . Parts Recycled . | . . . . Recycled Matter . | . . . . Retrieved Matter . | . . . . Retrieved Components . | . . . . Parts Scanalyzed . | . . . . Part Schematics Acquired . | . . . . Parts Damaged . | . . . . Bothacking | -11 -10 -10 -10 ------------ Run | Scr Mat Min Exi Used RIF Installer . | . . . . Robots Hacked . | . . . . Non-combat . | . . . . Combat . | . . . . Robot Hacks Applied . | . . . . Relay Couplers Released . | . . . . Fabnet Peak Effective % . | . . . . Robots Rewired . | . . . . Allies Hacked . | . . . . Hacks Repelled . | . . . . Allies | -11 -10 -10 -10 -------- Run | Scr Mat Min Exi Total Allies . | . . . . Largest Group . | . . . . Highest-Rated Group . | . . . . Highest-Rated Ally . | . . . . Total Orders . | . . . . Ally Attacks . | . . . . Total Damage . | . . . . Kills . | . . . . Allies Corrupted . | . . . . Allies Melted . | . . . . Intel | -11 -10 -10 -10 ------- Run | Scr Mat Min Exi Robot Analysis Total 2 | . 2 . . Derelict Logs Recovered 1 | . . 1 . Drone Launches . | . . . . Drone Recoveries . | . . . . Exploration | -11 -10 -10 -10 ------------- Run | Scr Mat Min Exi Turns Passed 2270 | 5 1070 886 309 Spaces Moved 1319 | 1 535 611 172 Core 5 | . . . 5 Treads 586 | 1 535 50 . Legs . | . . . . Wheels 723 | . . 556 167 Hover 5 | . . 5 . Flight . | . . . . Fastest Speed 110 | 160 160 110 110 Average Speed 133 | 160 160 115 112 Slowest Speed 240 | 160 160 240 200 Overloaded Moves . | . . . . Propulsion Burnouts . | . . . . Robots Hopped . | . . . . Cave-ins Triggered . | . . . . Exploration Rate (%) 59 | 2 96 93 46 Regions Visited 3 Branch Regions 2 Pre-discovered Areas 2 | . 1 . 1 Known Exits Taken 1 | . 1 . . Unknown Exits Taken 2 | 1 . 1 . Scrap Searched 1 | . . 1 . Spaces Dug . | . . . . Terrain Destroyed 159 | . 61 71 27 Melee . | . . . . Projectile 10 | . . . 10 AOE 149 | . 61 71 17 Terrain Rammed . | . . . . Walls Destroyed . | . . . . Machines Disabled . | . . . . Actions | -11 -10 -10 -10 --------- Run | Scr Mat Min Exi Total 1633 | 6 652 706 269 Wait 74 | . 31 2 41 Move 1316 | . 534 610 172 Hop . | . . . . Pick Up 27 | . 8 15 4 Fast Attach 7 | . 2 4 1 Attach 10 | 2 . 6 2 Detach 2 | . . 1 1 Swap 22 | . 14 6 2 Drop 26 | 4 2 5 15 Fire 144 | . 61 57 26 Melee . | . . . . Ram . | . . . . Kick . | . . . . Crush . | . . . . Escape Stasis . | . . . . Rewire . | . . . . Trap 5 | . . . 5 Miscellaneous . | . . . . Route ------- -11/Scrapyard -10/Materials (discovered 5 exits: [*Mat x3] / *Min x2) -10/Mines (discovered 3 exits: [*Mat x2] / *Exi) -10/Exiles History --------- Turn | Location | Event 6 | -11/Scrapyard | Discovered new exit (range 0) 6 | -11/Scrapyard | Entered Materials 45 | -10/Materials | Identified exit to Mines 343 | -10/Materials | Build established: Mutant 480 | -10/Materials | Discovered new exit (range 11) 742 | -10/Materials | Discovered new exit (range 15) 846 | -10/Materials | Discovered new exit (range 7) 899 | -10/Materials | Repaired Lgt. Assault Rifle 1076 | -10/Materials | Entered Mines 1112 | -10/Mines | Discovered new exit (range 14) 1132 | -10/Mines | Assembled infested the area 1137 | -10/Mines | Assisted by a Guerilla fighting off Assembled 1231 | -10/Mines | Destroyed 10 combat bots 1294 | -10/Mines | YI-UF0 nonchalantly dropped a Grenade Launcher on the ground 1319 | -10/Mines | Destroyed YI-UF0 1436 | -10/Mines | Deemed a non-threat by the Exiles lab entrance 1436 | -10/Mines | Discovered new exit (range 5) 1454 | -10/Mines | Core integrity fell below 50% 1497 | -10/Mines | Learned Materials interactive machine intel 1603 | -10/Mines | Lost 4 parts (1p2n1w) 1612 | -10/Mines | Discovered new exit (range 9) 1629 | -10/Mines | Met a Derelict shopkeep closing up shop 1839 | -10/Mines | Found a hidden stash of uninstalled traps 1861 | -10/Mines | Core integrity fell below 20% 1962 | -10/Mines | Entered Exiles 2010 | -10/Exiles | Met 8R-AWN 2026 | -10/Exiles | Met EX-HEX 2070 | -10/Exiles | Met EX-DEC 2076 | -10/Exiles | Learned location of Zion (-6) 2116 | -10/Exiles | Attacked by the Exiles 2212 | -10/Exiles | Found Prototype Ballistic Gun 2212 | -10/Exiles | Identified 8R-AWN's Boregun 2271 | -10/Exiles | Destroyed by 8R-AWN with 8R-AWN's Boregun Last Messages --------------- 02251_ Penetrated by HV Slug. 02253_ HV Slug penetrates 8R-AWN. 02254_ NLTDZZ>,UXSA|MGHVTCCSGFJ% 02254_ Penetrated by HV Slug. 02255_ HV Slug penetrates 8R-AWN. 02255_ Penetrated by HV Slug. 02257_ HV Slug penetrates Wall. 02257_ Penetrated by HV Slug. 02257_ Critical hit (Destroy). 02257_ Hvy. Armor Plating destroyed. 02258_ Penetrated by HV Slug. 02258_ 8R-AWN's Boregun destroyed. 02260_ Penetrated by HV Slug. 02263_ Critical hit (Destroy). 02263_ Aluminum Leg destroyed. 02263_ HV Slug penetrates Wall. 02264_ Penetrated by HV Slug. 02264_ HV Slug penetrates Earth. 02266_ Acquired Rnf. Fission Core. 02271_ Penetrated by HV Slug. Map ----- +----------------------------------------------------+ | ?????????????????????????????????????????????????? | | ?????????????????????????????????????????????????? | | ?????????????????????????????????????????????????? | | ?????????????????????????????????????????????????? | | ?????????????????????????????????????????????????? | | ?????????????????????????????????????????????????? | | ?????????????????????????????????????????????????? | | ?????????????????????????????????????????????????? | | ?????????????????????????????????????????????????? | | ?????????????????????????????????????????????????? | | ?????????????????????????????????????????????????? | | ?????????????????????????????????????????????????? | | ????????????? ???????????????????????????????????? | | ????????????? ??????????????#######?????????????? | | ???????????? ######???????#!!! "## ???????????? | | ???????????? #""#??????# "# ????????????? | | ???????????? ??????# ";#????????????? | | ????????????#" #????## " #????????????## | | ?????????????" #####" "#???????????? | | ??????????????# ## ""#????????????" | | ???????????????# #"" #??????????????" | | ??????????????????# ##??###???????"" | | ?????????????????????# ;# #???????"" | | ??????????????????????## #??????? | | ???????????????########" # #?????????" | | ???????????????# !! @ #?????????# | | ???????????????#! g ###"" # "##???### | | ???????????????#! !* #?##" % "#####X# | | ???????????????#! !!##??#" | | ???????????????# ! "" "###???#" | | ???????????????######;##??????### | | ???????????????????# #???????????### * | | ??????????????????# #??????????????### | | ?????????????????# #?????????????????## | | ????????????????# #???????????????????## | | ???????????????? #?????????????????????##" | | ??????????????? #???????????????????????#"" | | ????????????????????????????????????????#" | | ????????????????????????????????????????"" | | ????????????????????????????????????????""" | | ????????????????????????????????????????"" | | ?????????????????????????????????????????" | | ????????????????????????????????????????? | | ?????????????????????????????????????????" | | ?????????????????????????????????????????? | | ???????????????????????????????????????????? | | ?????????????????????????????????????????????? | | ????????????????????????????????????????????????? | | ?????????????????????????????????????????????????? | | ?????????????????????????????????????????????????? | +----------------------------------------------------+ Best States ------------- Heat Dissipation 25 Energy Generation 10 Energy Capacity 250 Matter Stores 300 Matter Capacity 400 Sight Range 16 Terrain Scan Density 10 Armor Coverage 600 Core Shielding 20 Weapon Shielding 66 Evasion (%) 40 Recoil Reduction 2 Item Schematics ----------------- None Robot Schematics ------------------ None Fabricated ------------ Nothing Alien Tech Used ----------------- None Achievements -------------- None Challenges ------------ None Game ------ Seed CargoSpreadMinigun Manual? 0 Play Time 00:16:49 Cumulative 461.2 hours Start 2021.11.10 @ 16:10:12 End 2021.11.10 @ 16:24:07 Sessions 1 Manual Loads 0 Difficulty Rogue Special Mode None Game No. 465 Rogue 465 Adventurer 0 Explorer 0 Win Type - Total 9 Types 8/0/0/1/0/0/0/0/0 Lore% 80 Gallery% 93 Achievement% 70 Wizard Run 0 Options --------- ASCII 0 Keyboard 0 Movement Mouse Keybinds 1 Fullscreen 2 Font 24/Smallcaps Map View 76x50 Tactical HUD 1 Map Filters NONE Filters NONE Steam 1 RUN: bb23b9b3-263d-48f5-98c5-d6c65824c0bb